bitfinex-derivatives/quotes_BTCF0:USTF0_20210104
["timestamp","ask_amount","ask_price","bid_price","bid_amount"]
[1609730670505,0.00383639,33455.0,33451.0,0.14033567]
[1609730671608,0.00383639,33456.0,33451.0,0.14033567]
[1609730672007,0.00383639,33456.0,33455.0,0.14033567]
[1609730674411,0.00383639,33456.0,33455.0,0.83393567]
[1609730676616,0.00383639,33456.0,33455.0,0.14033567]
[1609730677015,0.56664414,33457.0,33455.0,0.14033567]
[1609730677215,0.56664414,33457.0,33456.0,4.2047]
[1609730677615,0.46109441,33459.0,33456.0,4.2047]
[1609730677817,0.00383229,33463.0,33456.0,4.2047]
[1609730678018,0.00383229,33463.0,33462.0,0.14033567]
[1609730678417,1.01843149,33464.0,33462.0,0.14033567]
[1609730678617,0.005,33466.0,33462.0,0.14033567]
[1609730679120,0.01842865,33470.0,33462.0,0.14033567]
[1609730679517,0.01842865,33470.0,33462.0,4.13013567]
[1609730679721,0.56587951,33475.0,33462.0,4.13013567]
[1609730680020,0.56587951,33475.0,33474.0,0.14033567]
[1609730680221,0.14033567,33476.0,33462.0,3.9898]
[1609730680621,0.01842387,33479.0,33462.0,3.9898]
[1609730681022,1.01842385,33481.0,33462.0,3.9898]
[1609730681321,1.01842385,33481.0,33453.0,0.11461]
[1609730681523,1.12720385,33481.0,33470.0,4.797]
[1609730682023,1.26753952,33481.0,33480.0,0.14033567]
[1609730682225,1.24911567,33481.0,33480.0,0.81693567]
[1609730682423,1.24911567,33481.0,33463.0,0.1562]
[1609730682625,0.24911567,33481.0,33464.0,4.19]
[1609730683927,0.24911567,33481.0,33463.0,0.1562]
[1609730684127,0.10878,33481.0,33479.0,0.14033567]
[1609730684528,0.10878,33481.0,33480.0,4.2277]
[1609730686029,0.24911567,33481.0,33480.0,4.2277]
[1609730686631,1.24911567,33481.0,33480.0,4.2277]
[1609730688133,1.24911567,33481.0,33480.0,4.36803567]
[1609730688334,1.24911567,33481.0,33480.0,4.2277]
[1609730688533,0.24911567,33481.0,33480.0,4.2277]
[1609730688733,1.24911567,33481.0,33480.0,4.2277]
[1609730691435,1.24911567,33481.0,33478.0,0.14033567]
[1609730691633,1.24911567,33481.0,33469.0,3.8421]
[1609730692033,0.14033567,33472.0,33470.0,0.14033567]
[1609730692833,0.14033567,33472.0,33463.0,0.1562]
[1609730693034,0.14033567,33472.0,33457.0,3.9013]
[1609730694036,0.14033567,33472.0,33453.0,0.11461]
[1609730694235,0.1813704,33474.0,33425.0,2.15762554]
[1609730694436,0.56550068,33471.0,33457.0,4.5996]
[1609730694635,5.0,33469.0,33457.0,4.5996]
[1609730695038,0.01841466,33466.0,33457.0,4.5996]
[1609730695236,0.12468466,33466.0,33457.0,4.5996]
[1609730695437,0.01841471,33465.0,33457.0,4.5996]
[1609730696138,0.14033567,33458.0,33457.0,4.5996]
[1609730696741,1.14033567,33458.0,33457.0,4.5996]
[1609730697444,1.14033567,33458.0,33452.0,0.14033567]
[1609730698144,0.14033567,33453.0,33452.0,0.14033567]
[1609730699347,0.14033567,33453.0,33452.0,5.01213567]
[1609730699948,1.0,33454.0,33452.0,5.01213567]
[1609730700751,0.14033567,33458.0,33452.0,5.01213567]
[1609730702250,0.1465,33459.0,33456.0,0.14033567]
[1609730702452,1.0,33465.0,33456.0,0.14033567]
[1609730702654,1.0,33459.0,33456.0,0.14033567]
[1609730702851,1.13782,33459.0,33456.0,0.14033567]
[1609730704152,0.14033567,33457.0,33456.0,0.14033567]
[1609730706053,0.14033567,33457.0,33456.0,5.08843567]
[1609730706755,0.14033567,33457.0,33456.0,0.14033567]
[1609730710555,1.14033567,33457.0,33456.0,0.14033567]
[1609730710855,1.14417691,33457.0,33448.0,3.9366]
[1609730711056,1.14417691,33457.0,33417.0,2.17335342]
[1609730711254,1.14417691,33457.0,33439.0,3.9794]
[1609730712159,0.01847608,33456.0,33439.0,3.9794]
[1609730712359,0.14033567,33450.0,33439.0,3.9794]
[1609730712559,1.14033567,33450.0,33439.0,3.9794]
[1609730712760,1.6906143,33450.0,33439.0,3.9794]
[1609730712959,1.6906143,33450.0,33434.0,4.4747]
[1609730713160,1.6906143,33450.0,33432.0,0.14033567]
[1609730713359,5.7706143,33450.0,33432.0,3.82383567]
[1609730713861,6.87461807,33450.0,33432.0,3.82383567]
[1609730714361,2.79461807,33450.0,33427.0,0.14033567]
[1609730714561,1.79461807,33450.0,33427.0,0.14033567]
[1609730714762,1.79461807,33450.0,33443.0,4.0082]
[1609730714763,3.26719286,33450.0,33443.0,4.0082]
[1609730715364,3.07534196,33450.0,33443.0,4.0082]
[1609730716265,3.51901243,33450.0,33427.0,0.14033567]
[1609730716464,3.51901243,33450.0,33434.0,3.9814]
[1609730716664,4.51901243,33450.0,33434.0,3.9814]
[1609730717065,5.54953344,33450.0,33434.0,3.9814]
[1609730717866,4.51901243,33450.0,33434.0,3.9814]
[1609730721574,5.54810714,33450.0,33449.0,0.00315138]
[1609730722069,9.46480714,33450.0,33449.0,0.00315138]
[1609730722873,10.13034766,33450.0,33449.0,0.00315138]
[1609730723373,10.13034766,33450.0,33449.0,5.138e-05]
[1609730724478,6.21364766,33450.0,33449.0,5.138e-05]
[1609730724674,11.21364766,33450.0,33449.0,5.138e-05]
[1609730725975,11.21364766,33450.0,33440.0,2.69115138]
[1609730726276,0.14033567,33441.0,33440.0,2.69115138]
[1609730726677,1.14033567,33441.0,33369.0,0.5331]
[1609730726878,1.14033567,33441.0,33421.0,4.8893]
[1609730727277,1.14033567,33441.0,33355.0,0.1771]
[1609730727478,4.3198,33433.0,33408.0,4.8128]
[1609730728279,0.14033567,33409.0,33408.0,4.95313567]
[1609730728479,0.14033567,33409.0,33355.0,0.1771]
[1609730728681,0.14033567,33409.0,33395.0,4.1936]
[1609730729081,0.14033567,33409.0,33379.0,3.66660719]
[1609730729282,0.14033567,33409.0,33403.0,4.0431]
[1609730730283,1.0,33417.0,33407.0,0.14033567]
[1609730730486,1.0,33417.0,33407.0,0.15349]
[1609730730685,1.0,33416.0,33407.0,0.15349]
[1609730732290,0.14033567,33408.0,33407.0,0.15349]
[1609730735793,0.14033567,33408.0,33405.0,3.7339]
[1609730736292,0.14033567,33408.0,33407.0,0.14033567]
[1609730736492,1.0,33415.0,33407.0,0.25848567]
[1609730736695,0.00382406,33423.0,33407.0,0.25848567]
[1609730737494,0.27942942,33428.0,33407.0,0.25848567]
[1609730738492,0.27942942,33428.0,33415.0,0.14033567]
[1609730738693,1.0,33425.0,33415.0,0.14033567]
[1609730738894,0.5359,33423.0,33415.0,0.14033567]
[1609730739395,0.5359,33423.0,33407.0,0.11815]
[1609730740396,0.5359,33423.0,33410.0,0.14033567]
[1609730740594,1.0,33417.0,33411.0,0.5697]
[1609730742398,0.14033567,33412.0,33411.0,0.5697]
[1609730742796,0.14033567,33412.0,33409.0,0.14033567]
[1609730743699,0.14033567,33412.0,33407.0,0.11815]
[1609730743898,0.14033567,33412.0,33397.0,3.5913]
[1609730744398,5.2048,33418.0,33404.0,0.14033567]
[1609730744598,4.2048,33418.0,33404.0,0.14033567]
[1609730744799,1.0,33411.0,33404.0,0.14033567]
[1609730745202,1.0,33411.0,33400.0,0.13034]
[1609730745602,4.2541,33407.0,33400.0,0.13034]
[1609730746404,0.83443567,33401.0,33400.0,0.13034]
[1609730746805,0.83443567,33401.0,33397.0,0.14033567]
[1609730747005,0.14033567,33401.0,33391.0,0.005]
[1609730747406,3.4465,33398.0,33391.0,0.005]
[1609730748006,0.14033567,33401.0,33391.0,0.005]
[1609730748208,0.14033567,33401.0,33391.0,0.16888]
[1609730748406,0.14033567,33392.0,33391.0,0.16888]
[1609730750205,0.14033567,33392.0,33391.0,0.2085913]
[1609730750806,0.80473567,33392.0,33391.0,0.2085913]
[1609730752008,0.14033567,33392.0,33391.0,0.2085913]
[1609730754610,1.14033567,33392.0,33391.0,0.2085913]
[1609730756613,0.14033567,33392.0,33391.0,0.2085913]
[1609730758015,1.0,33401.0,33391.0,0.2085913]
[1609730758416,1.14033567,33401.0,33400.0,0.14033567]
[1609730758615,0.14033567,33401.0,33400.0,0.14033567]
[1609730759015,0.14033567,33401.0,33391.0,0.2085913]
[1609730760018,0.14033567,33401.0,33395.0,3.8882]
[1609730760320,0.155,33403.0,33395.0,3.8882]
[1609730760522,0.14033567,33406.0,33402.0,0.14033567]
[1609730760720,0.14033567,33406.0,33404.0,0.481]
[1609730761622,0.14033567,33406.0,33402.0,0.14033567]
[1609730761822,0.14033567,33406.0,33405.0,4.0336]
[1609730762025,0.00381691,33408.0,33405.0,4.0336]
[1609730762424,0.00381691,33408.0,33407.0,0.14033567]
[1609730763930,0.47340678,33412.0,33407.0,0.14033567]
[1609730764330,0.005,33425.0,33407.0,0.14033567]
[1609730764331,0.79947969,33416.0,33407.0,0.14033567]
[1609730764530,0.79947969,33416.0,33415.0,0.14033567]
[1609730764931,0.79947969,33416.0,33415.0,0.28481567]
[1609730765132,0.005,33425.0,33415.0,0.28481567]
[1609730766133,0.005,33425.0,33422.0,4.9065]
[1609730766334,0.005,33425.0,33422.0,5.04527]
[1609730766533,0.005,33425.0,33424.0,0.14033567]
[1609730766934,0.0943,33425.0,33424.0,0.14033567]
[1609730767835,0.005,33425.0,33424.0,0.14033567]
[1609730770237,0.005,33425.0,33424.0,3.95613567]
[1609730770638,0.005,33425.0,33424.0,3.8158]
[1609730772540,0.005,33425.0,33424.0,3.95613567]
[1609730772741,0.005,33425.0,33424.0,0.14033567]
[1609730773845,0.005,33425.0,33422.0,0.13877]
[1609730774243,0.005,33425.0,33420.0,4.0153]
[1609730774643,0.14033567,33421.0,33420.0,4.15563567]
[1609730777851,0.14033567,33421.0,33420.0,4.0153]
[1609730778350,0.14033567,33421.0,33415.0,0.14448]
[1609730778554,0.005,33425.0,33419.0,0.14033567]
[1609730780557,0.14533567,33425.0,33424.0,0.14033567]
[1609730780958,0.14533567,33425.0,33424.0,3.7425]
[1609730782254,0.14533567,33425.0,33414.0,0.1243]
[1609730782656,0.14033567,33419.0,33417.0,0.14033567]
[1609730788866,0.14033567,33419.0,33414.0,0.1243]
[1609730789065,0.14033567,33419.0,33411.0,4.3872]
[1609730789365,0.14033567,33419.0,33405.0,0.1477]
[1609730789766,0.14033567,33419.0,33398.0,0.12588]
[1609730789967,0.14033567,33419.0,33396.0,2.19963103]
[1609730790167,0.14033567,33419.0,33404.0,4.9198]
[1609730790569,0.12184,33423.0,33408.0,0.14033567]
[1609730790767,1.0,33417.0,33408.0,0.14033567]
[1609730790968,1.0,33417.0,33404.0,4.9198]
[1609730792572,0.14033567,33405.0,33404.0,4.9198]
[1609730792769,0.14033567,33405.0,33403.0,0.14033567]
[1609730793671,0.22983567,33405.0,33403.0,0.14033567]
[1609730793872,0.14033567,33405.0,33403.0,0.14033567]
[1609730794873,0.0898,33404.0,33403.0,0.14033567]
[1609730795073,0.14033567,33405.0,33403.0,0.14033567]
[1609730796076,0.0898,33404.0,33403.0,0.14033567]
[1609730797177,0.14033567,33405.0,33403.0,0.14033567]
[1609730798278,0.0901,33404.0,33403.0,0.14033567]
[1609730798480,0.0901,33404.0,33399.0,3.9908]
[1609730798683,0.0901,33404.0,33401.0,0.14033567]
[1609730799280,0.15806,33412.0,33401.0,0.14033567]
[1609730799479,1.0,33414.0,33401.0,0.14033567]
[1609730800682,0.14033567,33403.0,33401.0,0.14033567]
[1609730800882,0.14033567,33403.0,33402.0,4.8363]
[1609730802286,0.23013567,33403.0,33402.0,4.8363]
[1609730803488,0.14033567,33403.0,33402.0,4.8363]
[1609730804492,0.23003567,33403.0,33395.0,0.12332]
[1609730804793,0.14033567,33396.0,33391.0,0.18504697]
[1609730805192,0.14033567,33396.0,33395.0,4.8805]
[1609730805692,0.23013567,33396.0,33395.0,4.8805]
[1609730805894,0.14033567,33396.0,33395.0,4.8805]
[1609730808396,0.14033567,33396.0,33391.0,0.0447113]
[1609730808798,0.14033567,33392.0,33391.0,0.0447113]
[1609730810898,0.14033567,33392.0,33391.0,4.4773113]
[1609730812701,0.14033567,33392.0,33391.0,0.0447113]
[1609730814003,4.30233567,33392.0,33391.0,0.0447113]
[1609730814204,4.30233567,33392.0,33375.0,3.8]
[1609730814404,0.14033567,33392.0,33366.0,2.19787148]
[1609730814605,4.73,33385.0,33366.0,2.19787148]
[1609730814804,4.73,33385.0,33371.0,0.14033567]
[1609730815205,1.0,33392.0,33377.0,4.1647]
[1609730815605,0.03,33391.0,33377.0,4.1647]
[1609730816206,0.03,33391.0,33371.0,0.13035]
[1609730816406,4.7031,33379.0,33371.0,0.13035]
[1609730816605,0.13856,33386.0,33371.0,0.13035]
[1609730816807,0.14033567,33372.0,33371.0,0.13035]
[1609730817005,3.55033567,33372.0,33371.0,0.13035]
[1609730817206,3.55033567,33372.0,33354.0,2.19890541]
[1609730817406,0.14033567,33372.0,33354.0,2.19890541]
[1609730817606,3.4108,33364.0,33354.0,2.19890541]
[1609730818007,0.14033567,33372.0,33354.0,2.19890541]
[1609730818209,0.14033567,33372.0,33336.0,2.18732952]
[1609730818407,3.4375,33364.0,33354.0,0.16132]
[1609730818607,0.11749,33371.0,33354.0,0.16132]
[1609730818809,4.7114,33370.0,33354.0,0.16132]
[1609730820912,4.7114,33370.0,33355.0,0.14033567]
[1609730822317,0.11749,33371.0,33355.0,0.14033567]
[1609730822815,0.14033567,33356.0,33355.0,0.14033567]
[1609730823714,0.14033567,33356.0,33355.0,4.86063567]
[1609730823917,0.11749,33371.0,33355.0,4.86063567]
[1609730824116,0.2999,33374.0,33355.0,0.14033567]
[1609730824315,1.0,33375.0,33363.0,3.3708]
[1609730824517,1.0,33375.0,33363.0,3.50191]
[1609730824716,0.2834,33390.0,33374.0,0.005]
[1609730824918,0.2834,33390.0,33378.0,0.14033567]
[1609730826719,0.53429478,33392.0,33378.0,0.14033567]
[1609730826919,0.14033567,33379.0,33378.0,0.14033567]
[1609730829422,0.14033567,33379.0,33374.0,0.1161]
[1609730831027,0.14033567,33375.0,33374.0,0.1161]
[1609730833329,0.14033567,33375.0,33363.0,4.37061]
[1609730834629,1.0,33374.0,33363.0,4.37061]
[1609730835030,0.14033567,33364.0,33363.0,0.13111]
[1609730835233,0.14033567,33364.0,33349.0,0.14033567]
[1609730835440,5.0168,33361.0,33349.0,0.14033567]
[1609730835833,5.0168,33361.0,33346.0,0.15177]
[1609730836236,5.0168,33361.0,33339.0,3.9041]
[1609730836933,0.14033567,33348.0,33345.0,0.14033567]
[1609730837934,0.14033567,33348.0,33334.0,0.0397113]
[1609730838935,4.593,33352.0,33339.0,0.14033567]
[1609730839135,1.13011,33358.0,33339.0,0.25832567]
[1609730839335,3.4425,33340.0,33339.0,0.25832567]
[1609730840639,3.4425,33340.0,33339.0,0.11799]
[1609730840937,3.58283567,33340.0,33339.0,0.11799]
[1609730843841,3.57783567,33340.0,33339.0,0.11799]
[1609730844441,3.57783567,33340.0,33334.0,0.0397113]
[1609730844846,0.14033567,33340.0,33334.0,0.0397113]
[1609730845040,0.14033567,33335.0,33334.0,0.0397113]
[1609730846843,0.23123567,33335.0,33334.0,0.0397113]
[1609730848745,0.14033567,33335.0,33334.0,0.0397113]
[1609730850144,0.22983567,33335.0,33334.0,0.0397113]
[1609730850747,0.14033567,33335.0,33334.0,0.0397113]
[1609730851146,0.23073567,33335.0,33334.0,0.0397113]
[1609730851947,0.14033567,33335.0,33334.0,0.0397113]
[1609730852847,0.0887,33335.0,33334.0,0.0397113]
[1609730853048,4.0388,33339.0,33334.0,0.0397113]
[1609730853251,0.14033567,33335.0,33334.0,0.0397113]
[1609730855651,0.22923567,33335.0,33334.0,0.0397113]
[1609730856252,0.14033567,33335.0,33334.0,0.0397113]
[1609730857256,0.22943567,33335.0,33334.0,0.0397113]
[1609730858559,4.70623567,33335.0,33334.0,0.0397113]
[1609730858959,4.61713567,33335.0,33334.0,0.0397113]
[1609730859860,0.14033567,33335.0,33334.0,0.0397113]
[1609730860060,0.14033567,33335.0,33325.0,0.14164]
[1609730860263,0.14033567,33335.0,33323.0,0.005]
[1609730861062,0.0891,33334.0,33323.0,0.005]
[1609730861263,0.14033567,33324.0,33323.0,0.005]
[1609730862165,0.11257,33329.0,33323.0,0.005]
[1609730862564,0.0888,33330.0,33323.0,0.005]
[1609730863165,0.6529,33328.0,33323.0,0.005]
[1609730863366,0.14033567,33324.0,33323.0,0.005]
[1609730864373,0.23093567,33324.0,33323.0,0.005]
[1609730865372,0.14033567,33324.0,33323.0,0.005]
[1609730866375,0.23053567,33324.0,33323.0,0.005]
[1609730868075,0.14033567,33324.0,33323.0,0.005]
[1609730869276,0.14033567,33324.0,33323.0,0.14533567]
[1609730869477,0.23103567,33324.0,33323.0,0.005]
[1609730871880,0.14033567,33324.0,33323.0,0.005]
[1609730872878,0.22933567,33324.0,33323.0,0.005]
[1609730873385,0.22933567,33324.0,33323.0,0.14533567]
[1609730873782,0.089,33324.0,33323.0,0.14533567]
[1609730875284,0.14033567,33334.0,33323.0,0.14533567]
[1609730875485,1.0,33350.0,33323.0,0.14533567]
[1609730875685,1.0,33350.0,33325.0,4.4485]
[1609730876084,1.0,33350.0,33325.0,4.60213]
[1609730876286,1.0909,33350.0,33325.0,4.60213]
[1609730876685,0.0909,33350.0,33325.0,4.60213]
[1609730877289,0.0909,33350.0,33347.0,0.14033567]
[1609730877888,0.2924,33362.0,33347.0,0.14033567]
[1609730878889,0.0908,33356.0,33347.0,0.14033567]
[1609730879091,0.13543,33361.0,33347.0,0.14033567]
[1609730879290,0.14033567,33348.0,33347.0,0.14033567]
[1609730879993,0.22883567,33348.0,33347.0,0.14033567]
[1609730880193,0.14033567,33348.0,33347.0,0.14033567]
[1609730880693,0.14033567,33348.0,33341.0,0.14372]
[1609730881094,0.23033567,33348.0,33341.0,0.14372]
[1609730881295,0.14033567,33342.0,33341.0,0.28405567]
[1609730882599,0.22993567,33342.0,33341.0,0.28405567]
[1609730884200,0.14033567,33342.0,33341.0,0.28405567]
[1609730885203,0.22993567,33342.0,33341.0,0.28405567]
[1609730886100,0.14033567,33342.0,33341.0,0.28405567]
[1609730887102,0.23123567,33342.0,33341.0,0.28405567]
[1609730887303,0.0909,33342.0,33341.0,0.28405567]
[1609730888106,0.14033567,33351.0,33341.0,0.28405567]
[1609730889108,0.0896,33350.0,33341.0,0.28405567]
[1609730889505,0.0896,33350.0,33349.0,0.14033567]
[1609730890010,0.14033567,33351.0,33349.0,0.14033567]
[1609730891909,0.15083,33354.0,33349.0,0.14033567]
[1609730892108,0.2924,33362.0,33349.0,0.14033567]
[1609730892109,0.0182121,33367.0,33349.0,0.14033567]
[1609730892311,0.0906,33358.0,33349.0,4.00833567]
[1609730892510,0.01822372,33369.0,33349.0,4.00833567]
[1609730892911,0.31145011,33375.0,33349.0,4.00833567]
[1609730893513,0.14033567,33367.0,33356.0,0.14033567]
[1609730894613,4.758,33365.0,33356.0,0.14033567]
[1609730895615,0.14033567,33358.0,33356.0,0.14033567]
[1609730896515,0.14033567,33358.0,33356.0,4.68933567]
[1609730899121,0.01830446,33370.0,33356.0,4.68933567]
[1609730899322,0.56249609,33372.0,33356.0,4.68933567]
[1609730899522,0.70283176,33372.0,33371.0,0.14033567]
[1609730902124,0.65299609,33372.0,33371.0,0.14033567]
[1609730902426,0.08339609,33372.0,33371.0,0.14033567]
[1609730902627,0.65298143,33374.0,33371.0,0.14033567]
[1609730903028,0.0901,33381.0,33371.0,0.14033567]
[1609730903529,0.0901,33381.0,33380.0,0.14033567]
[1609730903729,0.14375,33383.0,33380.0,0.14033567]
[1609730905030,0.0896,33382.0,33380.0,0.14033567]
[1609730905832,0.14375,33383.0,33380.0,0.14033567]
[1609730906934,0.0893,33382.0,33380.0,0.14033567]
[1609730907534,0.14375,33383.0,33380.0,0.14033567]
[1609730908335,0.14033567,33386.0,33380.0,0.14033567]
[1609730909240,0.14033567,33386.0,33369.0,0.10577]
[1609730909438,0.28037567,33386.0,33362.0,0.10747]
[1609730909638,3.53684,33386.0,33373.0,0.14033567]
[1609730909838,0.005,33374.0,33373.0,0.14033567]
[1609730910038,0.5774,33374.0,33373.0,0.14033567]
[1609730910238,0.5774,33374.0,33362.0,0.10747]
[1609730910440,0.0884,33373.0,33362.0,0.10747]
[1609730910640,0.005,33374.0,33355.0,0.14793]
[1609730910840,0.005,33374.0,33353.0,4.6071]
[1609730911244,0.005,33374.0,33346.0,2.18919193]
[1609730911643,0.005,33374.0,33361.0,0.14033567]
[1609730912042,0.005,33374.0,33349.0,0.10254]
[1609730912244,0.005,33374.0,33363.0,3.6589]
[1609730912846,1.0,33368.0,33363.0,3.6589]
[1609730913046,1.12629,33368.0,33363.0,3.6589]
[1609730913748,0.14033567,33364.0,33363.0,3.6589]
[1609730918358,0.14033567,33364.0,33363.0,2.6276]
[1609730924063,0.14033567,33364.0,33359.0,0.14033567]
[1609730924268,0.14033567,33364.0,33349.0,0.10254]
[1609730924466,0.14033567,33364.0,33344.0,3.88]
[1609730924467,3.6826,33363.0,33344.0,3.88]
[1609730925167,1.14033567,33364.0,33340.0,0.005]
[1609730925367,1.14033567,33364.0,33340.0,0.16183]
[1609730925569,4.8982,33359.0,33340.0,0.16183]
[1609730925768,4.8982,33359.0,33344.0,0.14033567]
[1609730925969,4.8982,33359.0,33340.0,0.16183]
[1609730926473,0.1171,33359.0,33340.0,0.16183]
[1609730926672,1.0,33356.0,33340.0,0.16183]
[1609730927675,0.14033567,33341.0,33340.0,0.16183]
[1609730928274,1.0,33356.0,33340.0,0.16183]
[1609730928674,0.2747,33358.0,33340.0,0.16183]
[1609730928874,0.1171,33359.0,33340.0,0.16183]
[1609730929675,1.0,33364.0,33358.0,0.14033567]
[1609730930476,1.0,33364.0,33354.0,4.2848]
[1609730930675,0.12629,33368.0,33354.0,4.2848]
[1609730930876,0.93811536,33378.0,33354.0,4.2848]
[1609730930877,0.65309676,33377.0,33354.0,4.2848]
[1609730931778,0.14033567,33355.0,33354.0,4.2848]
[1609730933482,0.15517,33365.0,33354.0,4.2848]
[1609730933884,0.15517,33365.0,33362.0,0.14033567]
[1609730935086,0.15517,33365.0,33354.0,4.2848]
[1609730935785,0.15517,33365.0,33358.0,0.14033567]
[1609730937384,1.0,33375.0,33358.0,0.14033567]
[1609730937788,0.14033567,33359.0,33358.0,0.14033567]
[1609730939388,0.14033567,33359.0,33348.0,4.21437]
[1609730939791,0.14259,33366.0,33354.0,0.14033567]
[1609730939992,3.575,33362.0,33354.0,0.14033567]
[1609730941394,3.575,33362.0,33348.0,0.11177]
[1609730941594,1.0,33363.0,33340.0,0.16183]
[1609730941795,1.0,33363.0,33345.0,4.2742]
[1609730942696,1.0,33356.0,33345.0,4.2742]
[1609730942897,1.16659,33356.0,33345.0,4.2742]
[1609730943895,0.14033567,33346.0,33344.0,0.14033567]
[1609730944095,4.4556,33345.0,33344.0,0.14033567]
[1609730944496,4.4556,33345.0,33340.0,0.16183]
[1609730944696,0.14033567,33346.0,33340.0,0.16183]
[1609730945896,0.14033567,33341.0,33340.0,0.16183]
[1609730946098,4.48103567,33341.0,33340.0,0.16183]
[1609730946297,0.14033567,33341.0,33340.0,0.16183]
[1609730946898,0.14033567,33341.0,33340.0,0.03743]
[1609730947099,0.14033567,33341.0,33319.0,3.8181]
[1609730947497,1.0,33342.0,33319.0,3.8181]
[1609730947797,1.0,33342.0,33335.0,0.14033567]
[1609730948297,1.0,33342.0,33335.0,0.28368567]
[1609730948699,0.2717,33348.0,33335.0,0.28368567]
[1609730949399,0.2717,33348.0,33335.0,0.14335]
[1609730949802,0.14033567,33336.0,33335.0,0.14335]
[1609730950200,4.74853567,33336.0,33335.0,0.14335]
[1609730953506,4.74853567,33336.0,33319.0,0.14658]
[1609730953708,4.74853567,33336.0,33312.0,3.9795]
[1609730953907,4.6082,33336.0,33319.0,0.14033567]
[1609730954109,4.6082,33336.0,33319.0,0.29891567]
[1609730954812,1.0,33344.0,33319.0,0.29891567]
[1609730955010,4.8763,33320.0,33319.0,0.29891567]
[1609730955611,0.2785,33333.0,33319.0,0.29891567]
[1609730955812,0.14033567,33320.0,33319.0,0.29891567]
[1609730957011,0.14033567,33320.0,33319.0,4.19098]
[1609730957412,0.13533567,33320.0,33319.0,4.19098]
[1609730959213,0.14819,33330.0,33319.0,4.19098]
[1609730959814,0.14819,33330.0,33324.0,0.14033567]
[1609730960316,0.14819,33330.0,33319.0,4.19098]
[1609730960517,0.14819,33330.0,33319.0,0.15858]
[1609730960718,4.52079,33330.0,33311.0,0.2894]
[1609730961818,0.14819,33330.0,33317.0,0.14033567]
[1609730962120,0.14819,33330.0,33320.0,3.4426]
[1609730962318,0.2785,33333.0,33320.0,3.4426]
[1609730963922,0.14033567,33321.0,33320.0,3.4426]
[1609730964320,0.11027,33330.0,33320.0,3.4426]
[1609730969329,0.2785,33333.0,33320.0,3.4426]
[1609730969830,0.14033567,33321.0,33320.0,3.4426]
[1609730970429,0.14033567,33321.0,33318.0,0.14033567]
[1609730971432,0.15294,33330.0,33316.0,0.13908]
[1609730971632,0.15294,33330.0,33315.0,4.7159]
[1609730971830,0.15294,33330.0,33311.0,0.2894]
[1609730972433,0.15294,33330.0,33322.0,3.8681]
[1609730973535,0.14033567,33323.0,33317.0,0.14033567]
[1609730974438,3.4234,33321.0,33317.0,0.14033567]
[1609730974639,0.14033567,33323.0,33314.0,0.13467]
[1609730974837,3.8897,33315.0,33314.0,0.13467]
[1609730977043,0.14033567,33315.0,33314.0,0.13467]
[1609730977644,0.14033567,33315.0,33312.0,0.14033567]
[1609730978943,1.0,33328.0,33311.0,3.8449]
[1609730979346,0.14033567,33312.0,33311.0,0.26402567]
[1609730980545,4.0308,33312.0,33311.0,0.12369]
[1609730982048,1.0,33328.0,33311.0,0.12369]
[1609730982849,1.0,33328.0,33312.0,0.14033567]
[1609730983349,1.0,33328.0,33311.0,0.12369]
[1609730984553,1.0,33328.0,33307.0,4.331]
[1609730984751,0.15294,33330.0,33305.0,0.2765]
[1609730984951,3.8012,33320.0,33305.0,0.38626]
[1609730993059,0.14668,33328.0,33305.0,0.38626]
[1609730993259,4.0587,33306.0,33305.0,0.38626]
[1609730993658,4.0587,33306.0,33305.0,0.10976]
[1609730994263,4.0587,33306.0,33303.0,0.005]
[1609730995663,1.0,33326.0,33303.0,0.005]
[1609730995863,4.1113,33317.0,33303.0,0.12831]
[1609730997164,0.10427,33318.0,33303.0,0.12831]
[1609730997666,0.10427,33318.0,33304.0,4.261]
[1609731000270,0.10427,33318.0,33303.0,0.12831]
[1609731000469,3.8461,33317.0,33303.0,0.12831]
[1609731001073,0.10427,33318.0,33303.0,0.12831]
[1609731001472,4.3523,33311.0,33303.0,0.12831]
[1609731001672,1.0,33325.0,33303.0,0.12831]
[1609731001872,3.3807,33308.0,33303.0,0.12831]
[1609731002274,0.13694,33321.0,33303.0,0.12831]
[1609731002475,3.7194,33304.0,33303.0,0.12831]
[1609731006476,1.0,33313.0,33303.0,0.12831]
[1609731006876,4.5738,33304.0,33303.0,0.12831]
[1609731008878,4.5738,33304.0,33303.0,0.005]
[1609731009682,0.294,33305.0,33293.0,0.05]
[1609731010081,0.29772218,33305.0,33293.0,0.05]
[1609731010479,0.00372182,33304.0,33293.0,0.05]
[1609731010683,3.9739,33298.0,33293.0,0.05]
[1609731010881,0.16159,33298.0,33293.0,0.05]
[1609731011482,0.00372182,33304.0,33293.0,0.05]
[1609731011682,0.00372182,33304.0,33293.0,0.15055]
[1609731012083,0.00372182,33304.0,33297.0,4.0745]
[1609731012581,0.00372762,33310.0,33297.0,4.0745]
[1609731012780,0.00372762,33310.0,33293.0,0.15055]
[1609731012980,0.00372762,33310.0,33309.0,0.14033567]
[1609731013383,0.11143,33314.0,33309.0,0.14033567]
[1609731013581,0.03,33317.0,33309.0,0.14033567]
[1609731014982,0.03,33317.0,33316.0,0.66083567]
[1609731015986,0.03,33317.0,33316.0,0.14033567]
[1609731016983,0.17033567,33317.0,33316.0,0.14033567]
[1609731017384,0.17033567,33317.0,33303.0,0.16275]
[1609731017785,0.03,33317.0,33303.0,0.16275]
[1609731018186,0.03,33317.0,33305.0,4.3891]
[1609731018988,0.03,33317.0,33316.0,0.14033567]
[1609731020993,0.17033567,33317.0,33312.0,0.14033567]
[1609731021197,0.17033567,33317.0,33304.0,0.15966]
[1609731022292,0.03,33317.0,33304.0,0.15966]
[1609731023096,0.005,33320.0,33316.0,0.14033567]
[1609731025000,0.14033567,33317.0,33316.0,0.14033567]
[1609731026104,0.005,33320.0,33316.0,0.14033567]
[1609731027006,0.14033567,33317.0,33316.0,0.14033567]
[1609731028911,0.14033567,33317.0,33297.0,4.6763]
[1609731029113,0.14033567,33298.0,33297.0,0.14033567]